bitfinex-derivatives/quotes_BTCF0:USTF0_20250108
["timestamp","ask_amount","ask_price","bid_price","bid_amount"]
[1736348706338,0.06127327,95868.0,95867.0,0.001]
[1736348706643,0.001,95859.0,95856.0,0.3608]
[1736348706841,0.053173,95859.0,95856.0,0.3608]
[1736348707150,0.052174,95857.0,95847.0,0.3608]
[1736348707333,0.00010527,95868.0,95852.0,0.052176]
[1736348707334,0.00910527,95868.0,95852.0,0.052176]
[1736348707538,0.00910527,95868.0,95867.0,0.052168]
[1736348707750,0.00910527,95868.0,95866.0,0.3608]
[1736348708048,0.00010527,95868.0,95866.0,0.3608]
[1736348709244,0.00010527,95868.0,95867.0,0.052168]
[1736348709444,0.00710527,95868.0,95867.0,0.052168]
[1736348710037,0.052168,95867.0,95866.0,0.3608]
[1736348710243,0.052168,95867.0,95860.0,0.052172]
[1736348710448,0.052168,95867.0,95866.0,0.001]
[1736348710841,0.00010527,95868.0,95858.0,0.3608]
[1736348711045,0.05217,95863.0,95858.0,0.3608]
[1736348711242,0.00210527,95868.0,95867.0,0.052168]
[1736348711446,0.11017878,95880.0,95867.0,0.052168]
[1736348711447,0.1,95880.0,95879.0,0.052162]
[1736348711744,0.052144,95913.0,95880.0,0.052161]
[1736348711945,0.052137,95925.0,95916.0,0.052141]
[1736348712147,0.05214,95919.0,95912.0,0.3608]
[1736348712348,0.052136,95926.0,95918.0,0.05214]
[1736348712539,0.37078447,95929.0,95918.0,0.05214]
[1736348712540,0.3608,95929.0,95918.0,0.05214]
[1736348712740,0.131,95939.0,95918.0,0.05214]
[1736348712741,0.01016066,95930.0,95918.0,0.05214]
[1736348713054,0.052136,95926.0,95918.0,0.05204]
[1736348713443,0.01016066,95930.0,95918.0,0.05204]
[1736348713840,0.15538658,95930.0,95918.0,0.05204]
[1736348714051,0.1,95940.0,95914.0,0.1297]
[1736348714238,0.1,95940.0,95939.0,0.412929]
[1736348714648,0.21719313,95948.0,95939.0,0.728569]
[1736348714851,0.24891862,95954.0,95953.0,0.052121]
[1736348715046,0.24891862,95954.0,95953.0,0.412921]
[1736348715443,0.0338072,95954.0,95953.0,0.412921]
[1736348715648,0.00994066,95978.0,95953.0,0.3608]
[1736348715649,0.052113,95969.0,95953.0,0.3608]
[1736348715945,0.052113,95969.0,95959.0,0.412918]
[1736348716149,0.00985205,95979.0,95959.0,0.412918]
[1736348716453,0.052113,95968.0,95959.0,0.412918]
[1736348716643,0.11010077,95980.0,95959.0,0.412918]
[1736348716948,0.11010077,95980.0,95959.0,0.3608]
[1736348717149,0.11010077,95980.0,95959.0,0.3618]
[1736348717150,0.105,95960.0,95959.0,0.3618]
[1736348718254,0.105,95960.0,95959.0,0.001]
[1736348718451,0.3608,95966.0,95941.0,0.3608]
[1736348718755,0.052132,95934.0,95933.0,0.00156341]
[1736348719758,0.052136,95926.0,95925.0,0.3608]
[1736348720350,0.412936,95926.0,95906.0,0.3608]
[1736348720542,0.1315,95925.0,95906.0,0.3608]
[1736348720948,0.052145,95911.0,95906.0,0.3608]
[1736348721648,0.052145,95910.0,95906.0,0.3608]
[1736348721950,0.052139,95921.0,95912.0,0.052143]
[1736348722153,0.05214,95920.0,95917.0,0.3608]
[1736348722361,0.05214,95918.0,95917.0,0.3608]
[1736348723142,0.1315,95925.0,95906.0,0.3698]
[1736348723458,0.052142,95916.0,95915.0,0.3608]
[1736348723656,0.052137,95924.0,95915.0,0.412942]
[1736348723850,0.01016364,95930.0,95923.0,0.3608]
[1736348724051,0.3608,95961.0,95929.0,0.3608]
[1736348724247,0.052122,95952.0,95947.0,0.3608]
[1736348725150,0.3608,95961.0,95947.0,0.3608]
[1736348725352,0.3608,95961.0,95938.0,0.3608]
[1736348725850,0.052133,95931.0,95917.0,0.3608]
[1736348726055,0.052129,95940.0,95917.0,0.3608]
[1736348726056,0.05214,95919.0,95917.0,0.3608]
[1736348727244,0.05214,95919.0,95917.0,0.3678]
[1736348727453,0.052137,95924.0,95917.0,0.3678]
[1736348727655,0.05214,95919.0,95917.0,0.3678]
[1736348727857,0.05414,95919.0,95917.0,0.3608]
[1736348728255,0.052152,95896.0,95884.0,0.3608]
[1736348728455,0.052152,95896.0,95873.0,0.3608]
[1736348728652,0.052164,95874.0,95873.0,0.3608]
[1736348729150,0.052171,95862.0,95858.0,0.3608]
[1736348729555,9.088e-05,95861.0,95858.0,0.3608]
[1736348730149,0.052172,95860.0,95858.0,0.3608]
[1736348730765,0.052172,95860.0,95858.0,0.3658]
[1736348730954,0.052172,95860.0,95858.0,0.3688]
[1736348731352,0.052172,95860.0,95858.0,0.3638]
[1736348731560,9.088e-05,95861.0,95858.0,0.3638]
[1736348732152,0.052173,95859.0,95858.0,0.003]
[1736348732553,9.088e-05,95861.0,95850.0,0.3608]
[1736348732747,0.279,95879.0,95858.0,0.3618]
[1736348732947,0.279,95879.0,95867.0,0.3608]
[1736348733155,0.28922183,95879.0,95858.0,0.001]
[1736348733463,0.24334061,95870.0,95858.0,0.001]
[1736348733666,0.052173,95859.0,95858.0,0.002]
[1736348734253,0.052173,95859.0,95858.0,0.003]
[1736348734865,0.3608,95862.0,95836.0,7.551e-05]
[1736348735163,0.052184,95838.0,95836.0,7.551e-05]
[1736348735748,0.352184,95838.0,95836.0,7.551e-05]
[1736348735949,0.1394,95847.0,95820.0,0.3608]
[1736348735950,0.052191,95825.0,95820.0,0.3608]
[1736348736351,0.052187,95832.0,95820.0,0.3608]
[1736348736656,0.052188,95831.0,95820.0,0.3608]
[1736348736863,9.731e-05,95830.0,95820.0,0.3608]
[1736348737159,9.731e-05,95830.0,95806.0,0.3608]
[1736348737365,0.24334061,95820.0,95800.0,0.1]
[1736348737561,0.1413,95819.0,95800.0,0.1]
[1736348738164,0.052204,95802.0,95800.0,0.1]
[1736348739252,0.01029655,95811.0,95800.0,0.1]
[1736348739454,0.188395,95818.0,95807.0,0.3608]
[1736348739661,0.3608,95822.0,95807.0,0.3608]
[1736348739869,0.05219,95827.0,95817.0,0.3608]
[1736348740066,0.3608,95833.0,95817.0,0.3608]
[1736348740274,0.052199,95810.0,95809.0,0.3608]
[1736348740460,0.3608,95824.0,95800.0,0.111]
[1736348740659,0.052199,95810.0,95800.0,0.111]
[1736348740975,0.0522,95809.0,95807.0,0.3698]
[1736348741268,0.3608,95824.0,95807.0,0.3698]
[1736348741463,0.052197,95815.0,95807.0,0.3608]
[1736348741665,0.052197,95815.0,95809.0,0.3648]
[1736348741867,0.052198,95813.0,95809.0,0.3648]
[1736348742668,9.731e-05,95830.0,95809.0,0.3648]
[1736348742855,9.731e-05,95830.0,95829.0,0.3608]
[1736348743060,9.731e-05,95830.0,95829.0,0.773789]
[1736348744263,0.00309731,95830.0,95829.0,0.773789]
[1736348744463,0.052168,95867.0,95829.0,0.773789]
[1736348744464,0.052173,95859.0,95829.0,0.773789]
[1736348744771,0.05217,95864.0,95855.0,0.3608]
[1736348744972,0.01028983,95876.0,95855.0,0.3608]
[1736348745160,0.05216,95883.0,95878.0,0.3608]
[1736348745361,0.24334061,95900.0,95878.0,0.3608]
[1736348745558,0.052159,95884.0,95878.0,0.3608]
[1736348745772,0.1312,95890.0,95878.0,0.3608]
[1736348745967,0.052161,95880.0,95878.0,0.3608]
[1736348746764,0.052161,95880.0,95878.0,0.3638]
[1736348747458,0.052161,95880.0,95878.0,0.3618]
[1736348747876,0.3608,95879.0,95878.0,0.001]
[1736348748066,0.052172,95860.0,95855.0,0.3608]
[1736348748264,0.3608,95871.0,95853.0,0.3608]
[1736348748465,0.052173,95858.0,95853.0,0.3608]
[1736348748969,0.052174,95857.0,95853.0,0.3608]
[1736348749277,0.052175,95855.0,95853.0,0.3608]
[1736348750878,0.052175,95855.0,95835.0,0.3608]
[1736348750879,0.052183,95841.0,95835.0,0.3608]
[1736348751064,0.052185,95836.0,95835.0,0.3608]
[1736348752077,0.3608,95850.0,95833.0,0.00156514]
[1736348752268,0.052186,95834.0,95833.0,0.00156514]
[1736348752963,0.052187,95833.0,95826.0,0.3608]
[1736348753168,0.052187,95832.0,95826.0,0.3608]
[1736348754077,0.052187,95832.0,95826.0,0.3618]
[1736348754265,0.3608,95841.0,95826.0,0.001]
[1736348754266,0.05219,95827.0,95826.0,0.001]
[1736348754669,0.2947,95830.0,95800.0,0.4608]
[1736348754866,0.052199,95811.0,95809.0,0.3608]
[1736348756279,0.052204,95802.0,95800.0,0.1]
[1736348756872,0.3608,95823.0,95801.0,0.3608]
[1736348757180,0.052198,95813.0,95810.0,0.3608]
[1736348757379,0.052198,95812.0,95810.0,0.3608]
[1736348759785,0.052198,95812.0,95810.0,0.3648]
[1736348760289,0.052198,95812.0,95810.0,0.3668]
[1736348760883,0.2947,95830.0,95810.0,0.3668]
[1736348760884,0.3608,95858.0,95812.0,0.052198]
[1736348761181,0.28063346,95881.0,95857.0,0.3608]
[1736348761386,0.3608,95863.0,95846.0,0.3608]
[1736348761585,0.052179,95847.0,95846.0,0.3608]
[1736348761776,0.052179,95847.0,95834.0,0.3608]
[1736348761777,0.3608,95860.0,95843.0,0.3608]
[1736348761979,0.052171,95861.0,95860.0,0.1392]
[1736348762184,0.052171,95861.0,95860.0,0.5]
[1736348763582,0.052171,95861.0,95860.0,0.1392]
[1736348764384,0.052176,95852.0,95851.0,0.3608]
[1736348764579,0.052176,95852.0,95843.0,0.002]
[1736348764782,0.052181,95844.0,95843.0,0.002]
[1736348765186,0.3608,95875.0,95843.0,0.002]
[1736348765484,0.052158,95885.0,95861.0,0.3608]
[1736348765485,0.052171,95862.0,95861.0,0.3608]
[1736348765788,0.24334061,95890.0,95861.0,0.3608]
[1736348765789,0.0104153,95882.0,95861.0,0.7216]
[1736348765987,0.5111,95909.0,95881.0,0.3608]
[1736348766184,0.052151,95898.0,95897.0,0.3608]
[1736348766384,0.052148,95905.0,95897.0,0.3608]
[1736348766686,0.3608,95956.0,95910.0,0.052145]
[1736348766884,0.01645074,95919.0,95918.0,0.05214]
[1736348767183,0.052114,95967.0,95924.0,0.052137]
[1736348767378,0.052128,95941.0,95926.0,0.052136]
[1736348767580,0.052128,95941.0,95940.0,0.3608]
[1736348768691,0.052128,95941.0,95940.0,0.3618]
[1736348769081,0.057128,95941.0,95940.0,0.3618]
[1736348769982,0.057128,95941.0,95940.0,0.001]
[1736348770378,0.052137,95925.0,95914.0,0.3608]
[1736348770578,0.052142,95915.0,95914.0,0.3608]
[1736348771279,0.06252474,95915.0,95899.0,0.00156407]
[1736348771490,0.24334061,95910.0,95899.0,0.00156407]
[1736348771690,0.01038274,95915.0,95909.0,0.3608]
[1736348771877,0.001,95915.0,95914.0,0.3608]
[1736348772784,0.24334061,95960.0,95925.0,0.052136]
[1736348773090,0.24334061,95960.0,95947.0,0.3608]
[1736348773283,0.052124,95948.0,95947.0,0.3608]
[1736348773689,0.1429,95959.0,95935.0,0.3608]
[1736348773890,0.05214,95918.0,95916.0,0.3608]
[1736348774491,0.052131,95937.0,95920.0,0.052139]
[1736348774694,0.052131,95937.0,95916.0,0.3608]
[1736348774695,0.054124,95948.0,95947.0,0.001]
[1736348775393,0.05213,95937.0,95936.0,0.3608]
[1736348775987,0.002,95937.0,95928.0,0.3608]
[1736348776298,0.002,95937.0,95936.0,0.3608]
[1736348776499,0.054131,95937.0,95936.0,0.3608]
[1736348777197,0.002,95937.0,95936.0,0.3608]
[1736348777692,0.0100992,95966.0,95936.0,0.3608]
[1736348777887,0.1,95980.0,95958.0,0.7216]
[1736348778082,0.052111,95972.0,95958.0,0.3608]
[1736348778292,0.052111,95972.0,95940.0,0.3608]
[1736348778293,0.24334061,95970.0,95940.0,0.3608]
[1736348778487,0.24334061,95960.0,95940.0,0.3608]
[1736348778896,0.24334061,95950.0,95920.0,0.3608]
[1736348779099,0.05213,95937.0,95936.0,0.001]
[1736348779287,0.05213,95937.0,95936.0,0.3618]
[1736348779486,0.052128,95942.0,95936.0,0.3618]
[1736348779693,0.052129,95940.0,95936.0,0.3618]
[1736348779894,0.05213,95937.0,95936.0,0.3618]
[1736348780401,0.05213,95937.0,95910.0,0.24334061]
[1736348780402,0.3,95937.0,95907.0,0.3608]
[1736348780598,0.3608,95926.0,95907.0,0.3608]
[1736348780795,0.3608,95926.0,95907.0,0.33905583]
[1736348780993,0.052145,95910.0,95907.0,0.33905583]
[1736348781298,0.052131,95936.0,95907.0,0.69985583]
[1736348781598,9.066e-05,95909.0,95908.0,0.052146]
[1736348781801,9.066e-05,95909.0,95908.0,0.773746]
[1736348782385,0.05223566,95909.0,95908.0,0.7216]
[1736348782592,0.05223566,95909.0,95908.0,0.3608]
[1736348782796,0.05215,95900.0,95894.0,0.3608]
[1736348783186,0.05215,95900.0,95886.0,0.412957]
[1736348783500,0.41295,95900.0,95880.0,0.24342354]
[1736348783689,0.052161,95881.0,95880.0,8.293e-05]
[1736348783889,0.412961,95881.0,95880.0,8.293e-05]
[1736348784099,0.773761,95881.0,95880.0,8.293e-05]
[1736348784288,0.773761,95881.0,95841.0,0.00156505]
[1736348784289,0.052163,95878.0,95841.0,0.00156505]
[1736348784486,0.05218,95845.0,95841.0,0.00156505]
[1736348784693,0.05218,95845.0,95822.0,0.00056]
[1736348784902,0.052191,95825.0,95821.0,0.18452752]
[1736348785201,0.052192,95823.0,95821.0,0.18452752]
[1736348786191,0.052197,95815.0,95811.0,0.3608]
[1736348786387,0.052193,95823.0,95821.0,0.009]
[1736348786594,0.052181,95844.0,95823.0,0.052192]
[1736348786791,0.052184,95838.0,95836.0,0.3608]
[1736348786993,0.3608,95877.0,95836.0,0.3608]
[1736348787202,0.3608,95868.0,95844.0,0.3608]
[1736348787396,0.052176,95853.0,95846.0,1.5]
[1736348787795,5.053e-05,95852.0,95846.0,1.5]
[1736348788097,5.053e-05,95852.0,95844.0,0.3608]
[1736348788489,5.053e-05,95852.0,95846.0,0.3608]
[1736348788691,0.05216,95883.0,95846.0,0.3608]
[1736348788900,0.052158,95886.0,95876.0,0.3608]
[1736348789402,0.052159,95885.0,95876.0,0.3608]
[1736348789601,0.052159,95885.0,95884.0,0.3608]
[1736348789798,0.052155,95892.0,95884.0,0.3608]
[1736348790002,0.3608,95899.0,95884.0,0.3608]
[1736348790200,0.052151,95899.0,95892.0,0.3608]
[1736348791002,0.1435,95913.0,95892.0,0.3608]
[1736348791003,0.052154,95894.0,95892.0,0.3608]
[1736348792300,0.054154,95894.0,95892.0,0.3608]
[1736348792506,0.002,95894.0,95892.0,0.3608]
[1736348793195,0.003,95894.0,95892.0,0.3608]
[1736348793802,0.055154,95894.0,95892.0,0.3608]
[1736348793995,0.003,95894.0,95892.0,0.3608]
[1736348794198,0.003,95894.0,95893.0,0.052154]
[1736348794400,0.00152561,95894.0,95893.0,0.052154]
[1736348794894,0.00152561,95894.0,95892.0,0.3608]
[1736348795099,0.05367961,95894.0,95892.0,0.3608]
[1736348795300,0.05352138,95894.0,95892.0,0.3608]
[1736348795505,0.3608,95946.0,95892.0,0.6608]
[1736348795697,0.052127,95944.0,95920.0,0.3608]
[1736348795896,0.3608,95946.0,95930.0,0.3608]
[1736348796104,0.052133,95931.0,95930.0,0.3608]
[1736348797099,0.3608,95938.0,95920.0,0.3608]
[1736348797504,0.052139,95922.0,95920.0,0.3608]
[1736348797808,0.3608,95938.0,95912.0,0.052144]
[1736348798008,0.05214,95919.0,95912.0,0.052144]
[1736348798309,0.3608,95938.0,95918.0,0.3608]
[1736348798510,0.052134,95931.0,95927.0,0.3608]
[1736348799097,0.3608,95938.0,95927.0,0.3608]
[1736348799300,0.052138,95922.0,95920.0,0.003]
[1736348800300,0.3608,95938.0,95920.0,0.003]
[1736348800503,0.25383326,95950.0,95928.0,0.3608]
[1736348800504,0.01049265,95950.0,95928.0,0.3608]
[1736348800799,0.01049265,95950.0,95912.0,0.006]
[1736348800800,0.052121,95954.0,95948.0,0.3608]
[1736348801105,0.3608,95977.0,95948.0,0.3608]
[1736348801106,0.3608,95966.0,95948.0,0.3608]
[1736348801511,0.3608,95950.0,95929.0,0.052134]
[1736348801705,0.052131,95936.0,95928.0,0.3608]
[1736348801897,0.052134,95930.0,95928.0,0.3608]
[1736348803409,0.3608,95929.0,95928.0,0.003]
[1736348803599,0.3608,95929.0,95904.0,0.00156403]
[1736348803799,0.052147,95905.0,95904.0,0.00156403]
[1736348804601,0.05214,95920.0,95909.0,0.052145]
[1736348804798,0.3608,95929.0,95904.0,0.00156403]
[1736348804799,0.3608,95921.0,95904.0,0.00156403]
[1736348805003,0.052142,95915.0,95904.0,0.00656403]
[1736348805208,0.052142,95915.0,95904.0,0.36736403]
[1736348805607,0.052144,95912.0,95904.0,0.36736403]
[1736348805909,0.052144,95912.0,95904.0,0.00656403]
[1736348806112,0.052141,95917.0,95909.0,0.3608]
[1736348806407,0.001,95920.0,95909.0,0.3608]
[1736348806713,0.1329,95949.0,95921.0,0.052139]
[1736348806901,0.052124,95949.0,95941.0,0.3608]
[1736348807106,0.01004399,95963.0,95941.0,0.3608]
[1736348807413,0.052111,95973.0,95949.0,0.3608]
[1736348807604,0.052109,95975.0,95949.0,0.3608]
[1736348807805,0.052123,95951.0,95949.0,0.3608]
[1736348808511,0.412913,95969.0,95931.0,0.3608]
[1736348808713,0.3608,95957.0,95931.0,0.3608]
[1736348808912,0.3608,95948.0,95931.0,0.3608]
[1736348809213,0.3608,95940.0,95924.0,0.3608]
[1736348809716,0.3608,95940.0,95907.0,0.3608]
[1736348809717,0.3608,95932.0,95907.0,0.3608]
[1736348809911,0.052145,95910.0,95907.0,0.3608]
[1736348810111,0.052144,95912.0,95907.0,0.3608]
[1736348810410,0.052146,95908.0,95907.0,0.3608]
[1736348810606,0.052147,95905.0,95898.0,0.3608]
[1736348811917,0.1412,95912.0,95898.0,0.3608]
[1736348812112,0.3608,95933.0,95907.0,0.3608]
[1736348812419,0.052138,95923.0,95921.0,0.3608]
[1736348812616,0.3608,95933.0,95921.0,0.3608]
[1736348812920,0.3608,95933.0,95910.0,0.3608]
[1736348813415,0.052143,95914.0,95910.0,0.3608]
[1736348813614,0.3608,95933.0,95910.0,0.3608]
[1736348813809,0.052138,95923.0,95915.0,0.052142]
[1736348814003,0.052138,95923.0,95910.0,0.3608]
[1736348814004,0.1412,95939.0,95918.0,0.3608]
[1736348814204,0.5004,95945.0,95939.0,0.052129]
[1736348814205,0.412926,95945.0,95939.0,0.052129]
[1736348814406,0.3608,95945.0,95933.0,0.3608]
[1736348814612,0.052128,95941.0,95933.0,0.412932]
[1736348815016,0.1329,95955.0,95937.0,0.3608]
[1736348815216,0.05211,95975.0,95962.0,0.052116]
[1736348815414,0.4608,95980.0,95966.0,0.3608]
[1736348815415,0.01030551,95973.0,95966.0,0.3608]
[1736348815623,0.1329,95979.0,95973.0,0.052111]
[1736348815914,0.1329,95979.0,95967.0,0.052114]
[1736348816218,0.1329,95979.0,95966.0,0.3608]
[1736348816419,0.1329,95979.0,95963.0,0.3608]
[1736348816420,0.052113,95969.0,95963.0,0.3608]
[1736348816617,0.3608,95971.0,95963.0,0.3608]
[1736348816921,0.052114,95967.0,95963.0,0.3608]
[1736348817317,0.001,95973.0,95963.0,0.3608]
[1736348817621,0.001,95973.0,95972.0,0.3608]
[1736348818315,0.001,95973.0,95972.0,0.412911]
[1736348818516,0.2,96000.0,95972.0,0.879991]
[1736348818713,0.09411558,96020.0,95999.0,0.773696]
[1736348818908,0.09411558,96020.0,96019.0,0.773686]
[1736348820025,0.09411558,96020.0,96019.0,0.7216]
[1736348820222,0.14620058,96020.0,96019.0,0.72148532]
[1736348820411,0.09411558,96020.0,96019.0,0.72148532]
[1736348821015,0.052066,96055.0,96039.0,0.052075]
[1736348821322,0.1,96060.0,96039.0,0.7216]
[1736348821509,0.1,96060.0,96059.0,0.7216]
[1736348821709,0.1,96060.0,96043.0,0.3608]
[1736348822019,0.1,96060.0,96050.0,0.24334061]
[1736348822217,0.1,96060.0,96037.0,0.3608]
[1736348822423,0.052065,96057.0,96056.0,0.3608]
[1736348822615,0.1,96060.0,96056.0,0.412865]
[1736348822820,0.00268947,96070.0,96056.0,0.3608]
[1736348823120,0.00268947,96070.0,96069.0,0.3608]
[1736348823709,0.71554747,96070.0,96013.0,0.3608]
[1736348824017,0.3608,96047.0,96035.0,0.3608]
[1736348824621,0.052081,96028.0,96027.0,0.12774822]
[1736348824825,0.052086,96018.0,96017.0,0.30722317]
[1736348825128,0.052094,96004.0,95984.0,0.3608]
[1736348825426,0.3608,95999.0,95975.0,0.052109]
[1736348825717,0.3608,95999.0,95972.0,0.3608]
[1736348825924,0.3608,95999.0,95980.0,0.3608]
[1736348826619,0.3608,95999.0,95989.0,0.052102]
[1736348826808,0.052091,96009.0,95994.0,0.052099]
[1736348827009,0.3608,96002.0,95988.0,0.3608]
[1736348827225,0.412895,96002.0,95988.0,0.3608]
[1736348827422,0.3608,96002.0,95998.0,0.00708053]
[1736348827723,0.001,96004.0,95998.0,0.00908053]
[1736348827923,0.001,96004.0,96001.0,0.052095]
[1736348828128,0.001,96002.0,96001.0,0.052095]
[1736348828810,0.001,96002.0,95998.0,0.00908053]
[1736348829011,0.3608,95999.0,95998.0,0.00908053]
[1736348829910,0.052114,95967.0,95953.0,0.3608]
[1736348830120,0.3608,95968.0,95955.0,0.05212]
[1736348830520,0.3608,95968.0,95949.0,0.3608]
[1736348830712,0.052125,95946.0,95941.0,0.3608]
[1736348830918,8.053e-05,95945.0,95941.0,0.3608]
[1736348831420,8.053e-05,95945.0,95911.0,9.805e-05]
[1736348831421,0.052138,95922.0,95911.0,9.805e-05]
[1736348831616,0.052141,95917.0,95911.0,9.805e-05]
[1736348831816,0.3608,95923.0,95911.0,9.805e-05]
[1736348832014,0.3608,95923.0,95915.0,0.052142]
[1736348832425,0.052134,95931.0,95916.0,0.052141]
[1736348832724,0.36188053,95945.0,95930.0,0.3608]
[1736348832915,0.052127,95942.0,95928.0,0.052135]
[1736348833122,0.36188053,95945.0,95929.0,0.052134]
[1736348833425,0.052134,95931.0,95911.0,9.805e-05]
[1736348833723,0.001,95922.0,95917.0,0.05214]
[1736348833918,0.001,95922.0,95911.0,0.00909805]
[1736348834126,0.001,95922.0,95911.0,0.01809805]
[1736348834324,8.053e-05,95921.0,95914.0,0.052142]
[1736348834522,8.053e-05,95921.0,95920.0,0.052139]
[1736348834721,8.053e-05,95921.0,95911.0,0.00909805]
[1736348834919,8.053e-05,95921.0,95919.0,0.052139]
[1736348835225,0.001,95922.0,95917.0,0.3608]
[1736348835524,0.24334061,95960.0,95930.0,0.052133]
[1736348835727,0.052127,95943.0,95933.0,0.3608]
[1736348836027,0.3608,95958.0,95933.0,0.3608]
[1736348836326,0.052144,95912.0,95911.0,0.00769805]
[1736348836511,0.052144,95912.0,95899.0,0.3608]
[1736348836717,0.05215,95901.0,95899.0,0.3608]
[1736348837616,0.05224805,95901.0,95900.0,0.105]
[1736348838020,0.05224805,95901.0,95900.0,0.107]
[1736348838213,0.00109805,95901.0,95900.0,0.108]
[1736348840623,1e-08,95901.0,95900.0,0.106]
[1736348840925,0.052143,95913.0,95904.0,0.052148]
[1736348841131,0.052143,95913.0,95912.0,0.3608]
[1736348841733,0.05215,95901.0,95900.0,0.107]
[1736348841921,0.05211,95901.0,95900.0,0.102]
[1736348842120,0.001,95913.0,95900.0,0.102]
[1736348842325,0.001,95913.0,95912.0,0.412944]
[1736348842623,0.052139,95921.0,95912.0,0.412944]
[1736348842624,0.052139,95921.0,95912.0,0.413944]
[1736348842832,0.052139,95921.0,95920.0,0.3608]
[1736348843330,0.3608,95924.0,95912.0,0.3618]
[1736348843534,0.3608,95924.0,95912.0,0.001]
[1736348843535,0.052143,95913.0,95912.0,0.001]
[1736348843828,0.052143,95913.0,95912.0,0.002]
[1736348844327,0.301,95913.0,95872.0,0.3608]
[1736348844526,0.052162,95879.0,95872.0,0.3608]
[1736348844726,0.3608,95883.0,95872.0,0.3608]
[1736348844727,0.052164,95874.0,95872.0,0.3608]
[1736348844926,0.3608,95883.0,95872.0,0.3608]
[1736348845126,0.1287,95893.0,95872.0,0.3608]
[1736348845127,0.3608,95884.0,95872.0,0.3608]
[1736348845324,0.052161,95880.0,95872.0,0.3608]
[1736348845519,0.3608,95894.0,95874.0,0.3608]
[1736348845727,0.052152,95898.0,95874.0,0.3608]
[1736348846028,0.052165,95873.0,95872.0,0.004]
[1736348846822,0.052161,95881.0,95872.0,0.3648]
[1736348847027,0.052151,95898.0,95880.0,0.3608]
[1736348847226,0.24334061,95900.0,95889.0,0.3608]
[1736348847430,0.052156,95890.0,95889.0,0.3608]
[1736348847630,0.3608,95903.0,95887.0,0.052157]
[1736348847827,0.3608,95903.0,95888.0,0.3608]
[1736348848032,0.052147,95907.0,95896.0,0.3608]
[1736348848335,0.057151,95900.0,95896.0,0.3608]
[1736348848526,0.052152,95898.0,95896.0,0.3608]
[1736348848727,0.002,95890.0,95888.0,0.3608]
[1736348848923,0.052156,95889.0,95888.0,0.3608]
[1736348849530,0.052157,95887.0,95876.0,0.3608]
[1736348850137,0.002,95890.0,95876.0,0.3608]
[1736348850327,0.052161,95881.0,95876.0,0.3608]
[1736348850931,0.60514061,95900.0,95876.0,0.3608]
[1736348851134,0.052157,95888.0,95876.0,0.3638]
[1736348851327,0.052158,95886.0,95876.0,0.3638]
[1736348851535,0.3608,95900.0,95884.0,0.3608]
[1736348851836,0.052152,95898.0,95892.0,0.3608]
[1736348852032,0.052152,95897.0,95892.0,0.3608]
[1736348852242,0.052144,95911.0,95900.0,0.05215]
[1736348852433,0.37115329,95919.0,95896.0,0.3608]
[1736348852826,0.052156,95890.0,95888.0,0.3608]
[1736348854435,0.053156,95890.0,95888.0,0.3608]
[1736348854642,0.056156,95890.0,95888.0,0.3608]
[1736348855235,0.053156,95890.0,95888.0,0.3608]
[1736348855429,0.005,95890.0,95888.0,0.3608]
[1736348855734,0.005,95890.0,95888.0,0.412957]
[1736348855929,0.3608,95916.0,95888.0,0.3608]
[1736348856138,0.052146,95908.0,95905.0,0.3608]
[1736348856343,0.129,95929.0,95910.0,0.052144]
[1736348856528,0.1390627,95929.0,95913.0,0.3608]
[1736348856727,0.052143,95914.0,95913.0,0.3608]
[1736348857142,0.3608,95921.0,95905.0,0.3608]
[1736348857441,0.3608,95921.0,95892.0,0.3608]
[1736348857442,0.3608,95910.0,95892.0,0.3608]
[1736348857637,0.001,95890.0,95882.0,0.3608]
[1736348857845,0.052159,95884.0,95882.0,0.3608]
[1736348858144,0.052147,95907.0,95886.0,0.052158]
[1736348858438,0.412943,95914.0,95913.0,0.004]
[1736348858632,0.052152,95896.0,95895.0,0.3608]
[1736348858828,0.3608,95902.0,95882.0,0.3608]
[1736348859035,0.052159,95883.0,95882.0,0.3668]
[1736348860248,0.052159,95883.0,95882.0,0.006]
[1736348860448,0.052165,95873.0,95872.0,0.3608]
[1736348860636,0.3608,95893.0,95872.0,0.3608]
[1736348860842,0.052159,95884.0,95872.0,0.3608]
[1736348861040,0.3608,95877.0,95859.0,0.36136]
[1736348861344,0.052168,95868.0,95859.0,0.3608]
[1736348861540,0.052168,95868.0,95867.0,0.36093377]
[1736348861741,0.13,95890.0,95872.0,0.003]
[1736348861946,0.052165,95873.0,95872.0,0.003]
[1736348862748,0.052162,95879.0,95872.0,0.003]
[1736348863248,0.052159,95884.0,95877.0,0.3608]
[1736348863440,0.05216,95882.0,95877.0,0.3608]
[1736348863636,0.052158,95886.0,95877.0,0.3608]
[1736348864047,0.3608,95895.0,95877.0,0.3608]
[1736348864248,0.052162,95878.0,95877.0,0.3608]
[1736348865444,0.052162,95878.0,95877.0,0.3628]
[1736348865838,0.052162,95878.0,95877.0,0.3608]
[1736348866346,0.052168,95868.0,95867.0,0.00013377]
[1736348867248,0.24334061,95890.0,95867.0,0.00013377]
[1736348867249,0.052155,95892.0,95867.0,0.36093377]
[1736348867444,0.01010793,95899.0,95881.0,0.3608]
[1736348867653,0.05216,95882.0,95881.0,0.3608]
[1736348867955,0.18463686,95902.0,95901.0,0.05215]
[1736348868247,0.18463686,95902.0,95901.0,0.41295]